Cogmind - Beta 15 @@@ ROGUE MODE // 2025.05.09 @ 17:45:53 Player: Anting Result: Destroyed by V8-YDO(R) with Subdweller Laser Performance ------------- Evolutions (0) 0 Regions Visited (2) 400 Robots Destroyed (21) 105 Value Destroyed (633) 633 Prototype IDs (11) 220 Alien Tech Used (0) 0 Bonus (0) 0 TOTAL SCORE: 1358 Bonus ------- None Cogmind --------- Core Integrity 0/250 Matter 260/300 Energy 184/200 System Corruption 0% Temperature Cool (6) Movement Rolling (295) Ox13 Location -10/Subcaves Parts ------- > --- POWER (1) -------- Subdweller Power Source > --- PROPULSION (2) --- Aluminum Leg Compact Wheel > --- UTILITY (2) ------ Humpback > --- WEAPON (2) ------- Subdweller Beam Cannon Battle Cannon > --- INVENTORY (35) --- Cargo Legs Wheel Subdweller Monowheel Subdweller Monowheel Subdweller Monowheel Subdweller Monowheel Subdweller Monowheel Disposable Heat Sink Disposable Heat Sink Disposable Heat Sink Disposable Heat Sink Disposable Heat Sink Small Storage Unit Medium Storage Unit Subdweller Optics Makeshift Kinetic Plating Makeshift Thermal Plating Scrap Shield Makeshift System Restoration Module EM Pulse Gun Subdweller Laser Subdweller Laser Subdweller Laser Subdweller Laser Light Assault Rifle Subdweller Machine Gun Subdweller Shrapnel Launcher Scrap Shield Fragment (46) Scrap Shield Fragment (45) Scrap Shield Fragment (27) Peak State ------------ > --- POWER ------------ Subdweller Power Source > --- PROPULSION ------- Aluminum Leg Compact Wheel > --- UTILITY ---------- Humpback > --- WEAPON ----------- Subdweller Beam Cannon Battle Cannon > --- INVENTORY -------- Cargo Legs Wheel Subdweller Monowheel Subdweller Monowheel Subdweller Monowheel Subdweller Monowheel Subdweller Monowheel Disposable Heat Sink Disposable Heat Sink Disposable Heat Sink Disposable Heat Sink Disposable Heat Sink Small Storage Unit Medium Storage Unit Subdweller Optics Makeshift Kinetic Plating Makeshift Thermal Plating Scrap Shield Makeshift System Restoration Module EM Pulse Gun Subdweller Laser Subdweller Laser Subdweller Laser Subdweller Laser Light Assault Rifle Subdweller Machine Gun Subdweller Shrapnel Launcher Scrap Shield Fragment Scrap Shield Fragment Scrap Shield Fragment [Rating: 17] Favorites ----------- Power Light Ion Engine Engine Light Ion Engine Propulsion Light Treads Treads Light Treads Leg Aluminum Leg Wheel Compact Wheel Utility Medium Storage Unit Device Seismic Detector Storage Medium Storage Unit Weapon Subdweller Laser Energy Gun Subdweller Laser Energy Cannon Subdweller Beam Cannon Ballistic Gun Subdweller Machine Gun Ballistic Cannon Battle Cannon Launcher Subdweller Shrapnel Launcher Build | -11 -10 -10 ------- Run | Yrd Mat Sub Slots Evolved . | . . . Power . | . . . Propulsion . | . . . Utility . | . . . Weapon . | . . . Parts Attached 21 | 7 1 13 Power 3 | 1 . 2 Engine 3 | 1 . 2 Core . | . . . Reactor . | . . . Propulsion 4 | 2 . 2 Treads 2 | 2 . . Leg 1 | . . 1 Wheel 1 | . . 1 Hover . | . . . Flight . | . . . Utility 5 | 2 1 2 Device 2 | 1 . 1 Storage 3 | 1 1 1 Processor . | . . . Hackware . | . . . Protection . | . . . Artifact . | . . . Weapon 9 | 2 . 7 Energy Gun 3 | 1 . 2 Energy Cannon 1 | . . 1 Ballistic Gun 3 | 1 . 2 Ballistic Cannon 1 | . . 1 Launcher 1 | . . 1 Special Weapon . | . . . Impact Weapon . | . . . Slashing Weapon . | . . . Piercing Weapon . | . . . Special Melee Weapon . | . . . Unidentified Prototypes . | . . . Parts Lost 8 | . . 8 Power 2 | . . 2 Propulsion 2 | . . 2 Utility 1 | . . 1 Weapon 3 | . . 3 Highest Loss Streak 4 | . . 4 To Critical Strikes . | . . . Average Backups 14 | 3 6 15 Power . | . 1 . Propulsion 4 | 2 4 4 Utility 4 | . . 4 Weapon 3 | . 1 4 Tool/Special . | . . . Unused Backups 22 | . . 22 Power . | . . . Propulsion 9 | . . 9 Utility 9 | . . 9 Weapon 4 | . . 4 Tool/Special . | . . . Average Slot Usage (%) 84 | . 100 82 Engine 11 | . 14 11 Treads 12 | . 28 10 Leg 5 | . . 5 Wheel 6 | . . 7 Device 5 | . 14 4 Storage 14 | . 14 14 Energy Gun 12 | . 14 12 Energy Cannon 5 | . . 6 Ballistic Gun 9 | . 14 9 Peak Build Rating 17 | 7 7 17 Average Rating 10 | 4 7 11 On Entrance 4 | . 7 7 Naked Turns . | . . . Heaviest Build 215 | 15 20 215 Greatest Support 40 | 40 40 40 Greatest Overweight (x) 13 | . . 13 Average Overweight (x) 5 | . . 5 Largest Inventory Capacity 35 | 8 10 35 Average Capacity 21 | 6 9 23 Most Carried 33 | 6 7 33 Average Carried 15 | 4 6 17 Final Capacity 35 | 8 10 35 Final Carried 32 | 6 7 32 Class Distribution -------------------- 54% | Mutant 45% | Hauler-Mutant Dominant Class ---------------- Mutant | -10/Materials Hauler-Mutant | -10/Subcaves Resources | -11 -10 -10 ----------- Run | Yrd Mat Sub Matter Collected 606 | 210 70 326 Remotely . | . . . Salvage Created 633 | 30 129 474 Parts 49 | 2 9 38 Haulers Intercepted . | . . . Recyclers Shooed . | . . . Parts Field Recycled . | . . . Retrieved Matter . | . . . Parts Self-Destructed 13 | . . 13 Prevented . | . . . Kills | -11 -10 -10 ------- Run | Yrd Mat Sub Combat Hostiles Destroyed 20 | . 5 15 Guns 14 | . 5 9 Cannons 3 | . . 3 AOE 3 | . . 3 Classes Destroyed 5 | 1 2 2 Tunneler 1 | 1 . . Swarmer 6 | . 3 3 Grunt 2 | . 2 . Sentry 1 | . . 1 Subdweller 11 | . . 11 Best Kill Streak 5 | 1 5 3 Combat Bots Only 5 | . 5 3 Max Kills in Single Turn 1 | 1 1 1 Gunslinging . | . . . Exploded 1 | . . 1 Melee . | . . . Uniques/NPCs Destroyed . | . . . Combat | -11 -10 -10 -------- Run | Yrd Mat Sub Hostile Shots Fired 116 | . 36 80 Missed 27 | . 12 15 Hits 89 | . 24 65 Projectile 89 | . 24 65 Critical Strikes 1 | . 1 . Damage Taken 1510 | . 257 1253 Core 268 | . 40 228 Absorbed by Shields . | . . . Core Remaining (%) 100 | 100 . . Volleys Fired 73 | 1 17 55 Largest 2 | 2 2 2 Hottest 120 | 70 70 120 Shots Fired 125 | 2 34 89 Gun 102 | 2 34 66 Cannon 17 | . . 17 Launcher 6 | . . 6 Special . | . . . Kinetic 60 | 1 17 42 Thermal 65 | 1 17 47 Explosive . | . . . Electromagnetic . | . . . Robot Hit Streak 20 | 1 10 20 Robot Miss Streak 3 | . 3 3 Penetration Max . | . . . Secondary Targets . | . . . Shots Hit Robots 85 | 1 23 61 Core Hits 34 | 1 8 25 Critical Kills . | . . . Critical Parts Destroyed . | . . . Critical Strikes 1 | . . 1 Destroy 1 | . . 1 Melee Attacks . | . . . Impact . | . . . Slashing . | . . . Piercing . | . . . Sneak Attacks . | . . . Combat Hostiles . | . . . Follow-up Attacks . | . . . Damage Inflicted 1747 | 11 280 1456 Guns 1143 | 11 280 852 Cannons 235 | . . 235 Explosions 369 | . . 369 Melee . | . . . Ramming . | . . . Kinetic 1052 | 11 154 887 Thermal 695 | . 126 569 Explosive . | . . . Electromagnetic . | . . . Impact . | . . . Slashing . | . . . Piercing . | . . . Highest Corruption . | . . . Average Corruption . | . . . Corruption Purged . | . . . Corruption Blocked . | . . . Overload Shots . | . . . Overflow Damage . | . . . Projectiles . | . . . Explosions . | . . . Melee . | . . . Knockbacks 1 | . . 1 Impact . | . . . Kinetic 1 | . . 1 Secondary . | . . . Self-Inflicted Damage . | . . . Shots . | . . . Rammed . | . . . Targets Rammed . | . . . Kicked . | . . . Crushed . | . . . Highest Temperature 261 | 9 261 3 Average Temperature 106 | 6 117 2 Received Heat Transfer 240 | . 126 114 Siege Activations . | . . . Martial Activations . | . . . Shielding Activations . | . . . Robots Disrupted . | . . . Combat Hostiles . | . . . Robots Corrupted . | . . . Combat Hostiles . | . . . Parts Fried . | . . . Impact Corruptions . | . . . Robots Melted . | . . . Combat Hostiles . | . . . Parts Melted . | . . . Heat Transferred 1299 | . 370 929 Parts Sabotaged . | . . . Parts Stolen . | . . . Parts Stripped . | . . . Power Chain Reactions . | . . . Alert | -11 -10 -10 ------- Run | Yrd Mat Sub Maximum Alert Level . | . . . Low Security (%) 100 | 100 100 . Level 1 . | . . . Level 2 . | . . . Level 3 . | . . . Level 4 . | . . . Level 5 . | . . . High Security . | . . . Max Security . | . . . Peak Influence 101 | 5 101 . Initial . | . . . Average 22 | . 28 . Influence Increases 230 | 5 135 90 Destroy 0b10 Robot/C 180 | . 100 80 Destroy 0b10 Robot/NC 5 | 5 . . Destroy Leader 30 | . 20 10 Successful Hack 14 | . 14 . Destroy Structure 1 | . 1 . Influence Decreases 198 | 5 74 119 Entered New Map 30 | . . 30 Time Decay 158 | 5 74 79 Lost Part 10 | . . 10 Squads Dispatched . | . . . Investigation . | . . . Extermination . | . . . Reinforcement . | . . . Assault . | . . . Garrison . | . . . Intercept . | . . . Searches Triggered . | . . . Construction Impeded . | . . . Haulers Reinforced . | . . . Active Scanning Responses . | . . . Cargo Convoy Interrupts . | . . . Stealth | -11 -10 -10 --------- Run | Yrd Mat Sub Distress Signals 1 | . 1 . Communications Jammed . | . . . Distress Signals . | . . . Times Spotted 26 | . 10 16 Peak Tracking Total 7 | . 7 3 Tactical Retreats . | . . . Traps | -11 -10 -10 ------- Run | Yrd Mat Sub Traps Triggered 1 | . . 1 Indirectly . | . . . Trap Hack Attempts . | . . . Triggered . | . . . Disarmed . | . . . Reprogrammed . | . . . Reused . | . . . Traps Extracted . | . . . Installed . | . . . Triggered . | . . . Machines | -11 -10 -10 ---------- Run | Yrd Mat Sub Machines Disabled 1 | . . 1 Max in Single Turn 1 | . . 1 Machines Repaired . | . . . Machines Dismantled . | . . . Machines Sabotaged . | . . . Overloaded Fab Kills . | . . . Hacking | -11 -10 -10 --------- Run | Yrd Mat Sub Machines Accessed 4 | . 3 1 Terminals 3 | . 3 . Fabricators . | . . . Repair Stations . | . . . Recycling Units . | . . . Scanalyzers . | . . . Garrison Access . | . . . Total Hacks 14 | . 5 9 Successful 11 | . 2 9 Failed 3 | . 3 . Catastrophic 1 | . 1 . Database Lockouts . | . . . Manual 5 | . 5 . Terminals 5 | . 5 . Fabricators . | . . . Repair Stations . | . . . Recycling Units . | . . . Scanalyzers . | . . . Garrison Access . | . . . Terminal Hacks 11 | . 2 9 Record 8 | . . 8 Part Schematic 2 | . 2 . Proto ID Catalog 1 | . . 1 Fabricator Hacks . | . . . Repair Station Hacks . | . . . Recycling Unit Hacks . | . . . Scanalyzer . | . . . Garrison Access Hacks . | . . . Unauthorized Hacks . | . . . Terminals . | . . . Fabricators . | . . . Repair Stations . | . . . Recycling Units . | . . . Scanalyzers . | . . . Garrison Access . | . . . Data Cores Recovered . | . . . Used . | . . . Hacking Detections 3 | . 3 . Full Trace Events . | . . . Feedback Events . | . . . Feedback Blocked . | . . . Robot Schematics Acquired . | . . . Robots Built . | . . . Authchips . | . . . Time . | . . . Total Robot Build Rating . | . . . Part Schematics Acquired 2 | . 2 . Parts Built . | . . . Authchips . | . . . Time . | . . . Total Part Build Rating . | . . . Parts Repaired . | . . . Time . | . . . Parts Recycled . | . . . Recycled Matter . | . . . Retrieved Matter . | . . . Retrieved Components . | . . . Parts Scanalyzed . | . . . Part Schematics Acquired . | . . . Parts Damaged . | . . . Bothacking | -11 -10 -10 ------------ Run | Yrd Mat Sub Used RIF Installer . | . . . Robots Hacked . | . . . Non-combat . | . . . Combat . | . . . Robot Hacks Applied . | . . . Relay Couplers Released . | . . . Fabnet Peak Effective % . | . . . Robots Rewired . | . . . Allies Hacked . | . . . Hacks Repelled . | . . . Allies | -11 -10 -10 -------- Run | Yrd Mat Sub Total Allies . | . . . Largest Group . | . . . Highest-Rated Group . | . . . Highest-Rated Ally . | . . . Total Orders . | . . . Ally Attacks . | . . . Total Damage . | . . . Kills . | . . . Allies Corrupted . | . . . Allies Melted . | . . . Intel | -11 -10 -10 ------- Run | Yrd Mat Sub Active Infowar (turns) 716 | 10 329 377 Seismic 716 | 10 329 377 Robot Analysis Total . | . . . Derelict Logs Recovered 1 | . . 1 Drone Launches . | . . . Drone Recoveries . | . . . Exploration | -11 -10 -10 ------------- Run | Yrd Mat Sub Turns Passed 3261 | 94 329 2838 Spaces Moved 1247 | 50 145 1052 Core 4 | 4 . . Treads 775 | 46 145 584 Legs . | . . . Wheels 468 | . . 468 Hover . | . . . Flight . | . . . Fastest Speed 50 | 50 160 160 Average Speed 231 | 151 160 245 Slowest Speed 960 | 160 160 960 Overloaded Moves . | . . . Propulsion Burnouts . | . . . Robots Hopped . | . . . Potential Cave-ins . | . . . Cave-ins Triggered . | . . . Exploration Rate (%) 31 | 4 32 57 Regions Visited 2 Branch Regions 1 Pre-discovered Areas . | . . . Known Exits Taken . | . . . Unknown Exits Taken 2 | 1 1 . Scrap Searched 6 | . . 6 Spaces Dug 21 | . . 21 Terrain Destroyed 50 | . . 50 Melee . | . . . Projectile . | . . . AOE 50 | . . 50 Terrain Rammed . | . . . Walls Destroyed . | . . . Machines Disabled . | . . . Actions | -11 -10 -10 --------- Run | Yrd Mat Sub Total 1485 | 63 208 1214 Wait 99 | . 46 53 Move 1245 | 49 144 1052 Hop . | . . . Pick Up 42 | 6 . 36 Fast Attach 10 | 7 . 3 Attach 6 | . . 6 Detach . | . . . Swap 6 | . 1 5 Drop 4 | . . 4 Fire 73 | 1 17 55 Melee . | . . . Ram . | . . . Kick . | . . . Crush . | . . . Escape Stasis . | . . . Rewire . | . . . Trap . | . . . Miscellaneous . | . . . Route ------- -11/Scrapyard -10/Materials (discovered 3 exits: [*Mat] / [*Min] / *Sub) -10/Subcaves (discovered 2 exits: [*Mat x2]) History --------- Turn | Location | Event 5 | -11/Scrapyard | Discovered new exit (range 15) 95 | -11/Scrapyard | Entered Materials 180 | -10/Materials | Discovered new exit (range 9) 238 | -10/Materials | Discovered new exit (range 15) 300 | -10/Materials | Build established: Mutant 395 | -10/Materials | Discovered new exit (range 8) 424 | -10/Materials | Entered Subcaves 425 | -10/Subcaves | Approached by a straggling Scientist 832 | -10/Subcaves | Lost 4 parts (1p1u2w) 866 | -10/Subcaves | Disturbed a concealed Subdweller 1594 | -10/Subcaves | Visited 4L-MR0's lab 1615 | -10/Subcaves | Found Cargo Legs 2062 | -10/Subcaves | Shifting Twisted Machinery released Mak. Kinetic Plating 2065 | -10/Subcaves | Shifting Twisted Machinery released Battle Cannon 2065 | -10/Subcaves | Build established: Hauler-Mutant 2205 | -10/Subcaves | Discovered new exit (range 8) 2697 | -10/Subcaves | Shifting Twisted Machinery released Sub. Machine Gun 2697 | -10/Subcaves | Shifting Twisted Machinery released Flamer 2763 | -10/Subcaves | Core integrity fell below 50% 3095 | -10/Subcaves | Core integrity fell below 20% 3148 | -10/Subcaves | Learned location of 1 exit from Materials 3234 | -10/Subcaves | Discovered new exit (range 15) 3262 | -10/Subcaves | Destroyed by V8-YDO(R) with Subdweller Laser Last Messages --------------- 03010_ Hvy. Assault Rifle fries itself beyond repair. 03012_ Subatomizers dissect the Heat Sink. 03013_ Heat Sink fries itself beyond repair. 03037_ Acquired 53 matter. 03087_ Sub. Laser shoots sparks and powers down. 03095_ E1-WUQ(R) destroyed. 03103_ 2N-5R3(R) affixes Scrap Shield Fragment to Scrap Shield. 03108_ Subatomizers dissect the Sub. Monowheel. 03110_ 2N-5R3(R) destroyed. 03116_ Acquired Disposable Heat Sink. 03117_ Acquired 44 matter. 03120_ Subatomizers dissect the Sub. Monowheel. 03122_ Acquired Scrap Shield. 03126_ Acquired Disposable Heat Sink. 03127_ Acquired 6 matter. 03135_ Acquired Sub. Monowheel. 03148_ Acquired derelict log, extracted data. Data stored: Materials exits (x1). 03234_ EXIT=FOUND 03257_ V8-YDO(R) knocked back. Map ----- +----------------------------------------------------+ | ???????????????????## """ #?### "###???????????? | | ???????????????????# "| ##### #???????????? | | ???????????????????##" """"" ###???????????? | | ????????????????????### """"" #??######?????? | | ??????????????????????#%""""###" #### ##????? | | ??????????????????????# """#?### ## #????? | | ??????????????????????## """#??## #????? | | ????????????????#?###### "" #### ##????? | | ???????????????# # # ## ## #?????? | | ???????????????# ## #?????? | | ???????????????# ### ##????? | | ???????????# # ## ##?# #????? | | ???????????## #?### ####?# ##????? | | ????????????# ^??#### #???#####?????? | | ???????????# ????# #### #?###?????????? | | ???????????##?????## ##?###? ##????????? | | ????????????????### ### ## #????????? | | ????????????### # #????????? | | ???????????< #?????????? | | ???????????? ## ##### ##?????????? | | ?????????????## # ####???## #??????????? | | ???????????????# ####???## ##?????????? | | ??????????????# ## ##?## ###???????? | | ??????????????## ## R ### #???????? | | ???????????? ??## ### #???????? | | ???????????? ### ?#@% % ###???????? | | ?????????????# ### ?## ##?????????? | | ?????????????# ### ??# ##??????????? | | ?????????????# ## #?## ## ##???????????? | | ??????????# ## " "?## ## #????????????? | | ??????????? " &??## # #????????????? | | ????????????? #### #????????????? | | ?????????????# &" ## ##????????????? | | ?????????????????# " ### ##????????????? | | ??????????????# # ## #####????????? | | ?????????????????????## # % #????????? | | ??????????????????#### # #???????? | | ?????????????????## ##???????? | | ????????????????## ####????????? | | ?????????????#"" """" #### ##???????????? | | ??????????????"" "### #?##### ##????????????? | | ?????????????"" " "??# #?????####?????????????? | | ?????????????"" " ""??# #??????????????????????? | | ??????????????"""" "???# #?????????????????????? | | ???????????????? "?????# ##?????????????????????? | | ????????????????"??????# ##??????????????????????? | | ???????????????????????###???????????????????????? | | ?????????????????????????????????????????????????? | | ?????????????????????????????????????????????????? | | ?????????????????????????????????????????????????? | +----------------------------------------------------+ Best States ------------- Heat Dissipation 25 Coolant Potential 50 Energy Generation 15 Energy Capacity 250 Matter Stores 300 Matter Capacity 300 Sight Range 16 Terrain Scan Density 10 Evasion (%) 40 Recoil Reduction 2 Item Schematics ----------------- Hcp. Storage Unit | -10/Materials | Hacked Lrg. Storage Unit | -10/Materials | Hacked Robot Schematics ------------------ None Fabricated ------------ Nothing Repaired ---------- Nothing Alien Tech Used ----------------- None Achievements -------------- None Challenges ------------ None Game ------ Seed GrapheneReflexActivator Manual? 0 Play Time 00:10:31 Cumulative 248.9 hours Start 2025.05.09 @ 17:36:46 End 2025.05.09 @ 17:45:53 Sessions 1 Manual Loads 0 Difficulty Rogue Special Mode None Game No. 169 Rogue 169 Adventurer 0 Explorer 0 Win Type - Total 13 Types 6/0/5/1/0/0/0/1/0/0 Lore% 76 Gallery% 70 Achievement% 73 Wizard Run 0 Options --------- Layout 0 ASCII 0 Keyboard 0 Movement Mouse Keybinds 0 Fullscreen 2 Font 24/Smallcaps Map View 76x50 Zoom Use 0% Tactical HUD 1 Map Filters NONE Filters NONE Steam 1 RUN: 1b993cb3-0d47-4738-bb5e-f76da812fd9d